bitfinex/quotes_ETHUSD_20251111
["timestamp","ask_amount","ask_price","bid_price","bid_amount"]
[1762820139502,0.001,3569.0,3568.9,18.58224564]
[1762820139806,0.001,3569.0,3568.9,18.04824564]
[1762820140009,0.001,3569.0,3568.9,17.72155141]
[1762820140302,0.001,3569.0,3568.9,18.07107897]
[1762820140605,0.001,3569.0,3568.9,24.57098641]
[1762820140786,0.001,3569.0,3568.9,20.45570741]
[1762820140993,0.001,3569.0,3568.9,16.40364952]
[1762820141597,0.001,3569.0,3568.9,19.75175252]
[1762820141771,0.001,3569.0,3568.9,19.21775252]
[1762820142186,0.001,3569.0,3568.9,20.56383952]
[1762820142595,0.001,3569.0,3568.9,42.86120052]
[1762820143097,0.001,3569.5,3569.4,4.2505953]
[1762820143322,0.001,3569.5,3569.4,24.09543453]
[1762820143669,0.001,3569.5,3569.4,25.49959553]
[1762820145075,0.001,3569.5,3569.4,24.06470753]
[1762820145775,0.001,3569.5,3569.4,25.50901953]
[1762820146484,0.001,3569.5,3569.4,24.07407253]
[1762820146690,0.001,3569.5,3569.4,25.21542653]
[1762820146900,0.001,3569.5,3569.4,25.47867253]
[1762820147097,0.001,3569.5,3569.4,11.12308353]
[1762820147288,0.001,3569.5,3569.4,25.47867253]
[1762820147490,0.001,3569.5,3569.4,20.49823553]
[1762820147900,0.001,3569.5,3569.4,20.00973553]
[1762820148080,0.001,3569.5,3569.4,20.49823553]
[1762820148277,0.001,3569.5,3569.4,17.01069821]
[1762820149211,0.001,3569.5,3569.4,10.73794521]
[1762820149415,0.001,3569.5,3569.4,24.76781676]
[1762820150300,0.001,3569.5,3569.4,39.24368676]
[1762820150481,0.001,3569.5,3569.4,37.99203376]
[1762820150674,0.001,3569.5,3569.4,31.43232976]
[1762820150910,0.001,3569.5,3569.4,21.57171976]
[1762820151276,0.001,3569.5,3569.4,30.39522976]
[1762820151618,0.001,3569.5,3569.4,27.62868276]
[1762820151832,0.001,3569.5,3569.4,24.11449276]
[1762820152430,0.001,3569.5,3569.4,22.06059076]
[1762820152589,0.001,3569.5,3569.4,21.60630176]
[1762820152925,0.001,3569.5,3569.4,20.66531773]
[1762820153481,0.001,3569.5,3569.4,22.33122573]
[1762820153909,0.001,3569.5,3569.4,19.26854473]
[1762820154335,1e-08,3570.9,3569.8,3.4802]
[1762820154634,1e-08,3570.9,3570.8,9.26685243]
[1762820154840,1e-08,3570.9,3570.8,10.4017118]
[1762820155040,1e-08,3570.9,3570.8,41.44474321]
[1762820155700,0.001,3571.3,3571.2,3.25568321]
[1762820155901,0.001,3571.3,3571.2,11.10443876]
[1762820156205,0.001,3571.3,3571.2,11.83205673]
[1762820156410,0.001,3571.3,3571.2,33.22162005]
[1762820156611,0.001,3571.3,3571.2,32.83446805]
[1762820156790,0.001,3571.3,3571.2,33.97547769]
[1762820157233,0.001,3571.3,3571.2,32.96792569]
[1762820157413,0.001,3571.3,3571.2,31.81694569]
[1762820158324,0.001,3571.3,3571.2,33.42118469]
[1762820158695,0.001,3571.7,3571.6,3.2553696]
[1762820158890,0.001,3571.7,3571.6,10.54596001]
[1762820159113,0.001,3571.7,3571.6,11.36289968]
[1762820159309,1e-08,3571.9,3571.8,5.91462483]
[1762820159509,1e-08,3571.9,3571.8,26.16243012]
[1762820159742,1e-08,3571.9,3571.8,7.48718112]
[1762820159920,1e-08,3571.9,3571.8,26.4921119]
[1762820160119,1e-08,3571.9,3571.8,31.0262919]
[1762820160320,1e-08,3571.9,3571.8,26.0262919]
[1762820160914,0.475,3572.9,3572.8,3.25442921]
[1762820161114,0.01,3572.9,3572.8,9.01617825]
[1762820161315,0.001,3573.2,3573.1,4.19769421]
[1762820161522,0.001,3573.2,3573.1,7.34054826]
[1762820161848,0.9438,3573.2,3573.1,7.01940621]
[1762820162156,0.9438,3573.2,3573.1,4.1180916]
[1762820162357,0.9438,3573.2,3573.1,2.658716]
[1762820163715,3.74241188,3573.2,3573.1,0.9935]
[1762820163919,2.79869021,3573.1,3573.0,0.9935]
[1762820164137,0.4778,3572.2,3572.1,1.512]
[1762820164341,0.6764,3572.2,3572.1,5.30497369]
[1762820164652,0.465,3572.7,3572.6,5.4577979]
[1762820164948,0.465,3572.7,3572.6,5.84503573]
[1762820165108,0.9428,3572.7,3572.6,5.84503573]
[1762820165920,0.9428,3572.7,3572.6,3.04595383]
[1762820166122,0.9428,3572.7,3572.6,5.84503573]
[1762820166322,0.9428,3572.7,3572.6,5.4577979]
[1762820167673,0.001,3573.2,3572.9,0.405504]
[1762820167841,0.466,3573.2,3573.1,4.19769421]
[1762820168041,0.001,3573.2,3573.1,8.26518004]
[1762820168241,0.001,3573.2,3573.1,8.60272119]
[1762820168443,0.001,3573.2,3573.1,10.05728235]
[1762820168988,0.001,3573.2,3573.1,11.71664435]
[1762820169135,0.001,3573.2,3573.1,11.50368035]
[1762820169338,0.001,3573.2,3573.1,11.24407135]
[1762820169767,0.001,3573.2,3573.1,13.24838035]
[1762820169966,0.4788,3573.2,3573.1,6.91196737]
[1762820170237,0.4788,3573.2,3573.1,5.89464404]
[1762820171478,0.001,3573.2,3573.1,5.89464404]
[1762820172776,0.4788,3573.2,3573.1,5.89464404]
[1762820173161,0.4788,3573.2,3573.1,6.2105511]
[1762820173336,0.4788,3573.2,3573.1,5.89464404]
[1762820173745,0.4788,3573.2,3573.1,6.2105511]
[1762820174300,0.4788,3573.2,3573.1,5.82331327]
[1762820174951,0.001,3573.2,3573.1,7.04281364]
[1762820175157,0.001,3573.2,3573.1,9.69747164]
[1762820175488,0.001,3573.2,3573.1,7.49901364]
[1762820175658,0.001,3573.2,3573.1,9.43077164]
[1762820176855,0.001,3573.2,3573.1,7.04281364]
[1762820177370,0.4788,3573.2,3573.1,6.72690658]
[1762820177570,0.9438,3573.2,3573.1,5.45740621]
[1762820177778,0.9438,3573.2,3573.1,2.253212]
[1762820178099,0.9438,3573.2,3573.1,0.9935]
[1762820178590,3.74241188,3573.2,3573.1,0.9935]
[1762820178793,2.79878007,3573.0,3572.7,0.9935]
[1762820179005,0.6541192,3572.9,3572.7,0.9935]
[1762820179202,0.6764,3572.8,3572.7,0.9935]
[1762820179403,1.1414,3572.8,3572.7,0.9935]
[1762820179754,3.94032521,3572.8,3572.7,0.9935]
[1762820179958,2.79900355,3572.7,3572.6,0.002]
[1762820180173,4.08181905,3572.7,3572.6,0.002]
[1762820184137,1.2828155,3572.7,3572.6,0.002]
[1762820184633,4.08181905,3572.7,3572.6,0.002]
[1762820187793,2.79965164,3573.2,3572.6,0.002]
[1762820187794,0.001,3573.6,3573.5,3.79187694]
[1762820187991,0.1946,3574.8,3574.7,0.405504]
[1762820188193,0.1946,3574.8,3574.7,1.93899419]
[1762820188419,0.682,3574.8,3574.7,1.399004]
[1762820188837,1.1817,3574.8,3574.7,4.19644154]
[1762820189625,0.01,3574.9,3574.8,3.20286329]
[1762820189793,0.01,3574.9,3574.8,7.96977701]
[1762820190120,0.01,3574.9,3574.8,9.61738585]
[1762820190340,0.01,3574.9,3574.8,10.55748585]
[1762820191099,0.01,3574.9,3574.8,29.07801814]
[1762820191426,0.01,3574.9,3574.8,10.16958901]
[1762820191634,0.01,3574.9,3574.8,12.64538201]
[1762820192025,0.01,3574.9,3574.8,13.09555547]
[1762820192225,0.01,3574.9,3574.8,12.64538201]
[1762820192424,0.01,3574.9,3574.8,2.658716]
[1762820192937,0.01,3574.9,3574.8,5.45607529]
[1762820193296,0.4974,3574.9,3574.8,5.45607529]
[1762820193703,0.6136,3574.9,3574.8,5.45607529]
[1762820194060,1.1133,3574.9,3574.8,0.9935]
[1762820194338,1.1133,3574.9,3574.2,0.9935]
[1762820194498,0.4874,3574.3,3574.2,0.9935]
[1762820194900,0.9871,3574.3,3574.2,0.9935]
[1762820195345,4.44308221,3574.3,3574.0,0.9935]
[1762820195501,0.1938,3573.8,3573.6,0.9935]
[1762820195903,1.1788,3573.7,3573.6,0.9935]
[1762820196875,3.97702033,3573.7,3573.6,0.9935]
[1762820197075,1.1788,3573.7,3573.6,0.9935]
[1762820197446,3.97702033,3573.7,3573.6,0.9935]
[1762820197638,4.65452102,3573.7,3573.6,0.9935]
[1762820197842,4.65452102,3573.7,3573.5,0.9935]
[1762820198042,4.65452102,3573.7,3572.7,2.79900243]
[1762820198043,0.4997,3573.6,3573.2,0.9935]
[1762820198245,2.79851954,3573.4,3572.6,0.002]
[1762820198482,2.79851954,3573.4,3573.0,0.9935]
[1762820198783,3.29824638,3573.3,3573.0,0.9935]
[1762820198943,0.4874,3573.1,3573.0,0.9935]
[1762820199391,0.9871,3573.1,3573.0,0.9935]
[1762820201046,2.7988349,3573.0,3572.8,0.9935]
[1762820201391,0.9871,3572.9,3572.8,0.9935]
[1762820201592,0.9871,3572.9,3572.6,0.002]
[1762820201593,3.78594687,3572.9,3572.6,0.002]
[1762820201746,0.1938,3572.7,3572.6,0.9955]
[1762820202145,0.6935,3572.7,3572.6,0.9955]
[1762820208591,0.4997,3573.4,3572.6,0.875204]
[1762820208805,0.4997,3573.4,3573.3,0.9935]
[1762820209099,0.4874,3573.4,3573.3,0.9935]
[1762820209580,0.4997,3574.3,3574.1,0.9935]
[1762820209755,3.97952888,3574.2,3574.1,0.9935]
[1762820210085,2.79800237,3574.0,3573.4,2.79844785]
[1762820210315,0.4997,3574.1,3572.6,0.002]
[1762820210589,2.79876854,3573.0,3572.9,0.9935]
[1762820210808,2.79876854,3573.0,3572.6,0.002]
[1762820210809,2.79888913,3572.9,3572.6,0.002]
[1762820210958,3.28640355,3572.7,3572.6,0.002]
[1762820211374,3.78610355,3572.7,3572.6,0.002]
[1762820214097,3.81423546,3572.7,3572.6,0.002]
[1762820214319,3.78610355,3572.7,3572.6,0.002]
[1762820214460,3.78610355,3572.7,3571.8,0.002]
[1762820214461,2.79963044,3571.9,3571.8,0.002]
[1762820214661,2.80017921,3571.2,3571.1,0.01]
[1762820214987,3.28757921,3571.2,3571.1,0.01]
[1762820215160,3.75997921,3571.2,3571.1,0.01]
[1762820215797,0.9598,3571.2,3571.1,0.01]
[1762820215983,3.75997921,3571.2,3571.1,0.01]
[1762820216183,4.13597713,3571.2,3571.1,0.01]
[1762820217091,1.33579792,3571.2,3571.1,0.01]
[1762820217288,0.4874,3571.2,3571.1,1.0035]
[1762820217505,0.9598,3571.2,3571.1,1.0035]
[1762820218391,0.4724,3571.8,3571.1,1.0035]
[1762820218569,0.4724,3571.8,3571.5,0.9935]
[1762820218969,0.4699,3571.6,3571.5,0.9935]
[1762820219191,0.1946,3571.9,3571.5,0.9935]
[1762820219389,0.82119505,3571.9,3571.5,0.9935]
[1762820219604,0.1946,3571.9,3571.3,2.80009696]
[1762820219808,0.1828,3572.2,3571.8,0.9935]
[1762820220222,3.45460161,3572.2,3571.8,0.9935]
[1762820220518,2.79950297,3572.1,3571.8,0.9935]
[1762820220673,0.1828,3572.5,3571.8,2.79965126]
[1762820220872,0.10099999,3575.3,3572.6,0.9935]
[1762820220873,3.27108529,3573.2,3572.6,0.9935]
[1762820221101,0.4724,3573.2,3573.0,0.9935]
[1762820221299,0.4724,3573.2,3573.0,1.37994142]
[1762820221511,3.26864762,3573.1,3572.1,0.405504]
[1762820221739,2.79907712,3572.7,3572.5,0.9935]
[1762820221963,0.4206,3572.2,3572.1,0.9935]
[1762820222583,0.4724,3572.6,3572.1,0.9935]
[1762820222783,0.1946,3573.4,3572.8,0.9935]
[1762820222784,0.4724,3573.2,3572.8,0.9935]
[1762820223128,3.45154687,3572.9,3572.8,0.9935]
[1762820223323,1.32495617,3572.9,3572.8,0.9935]
[1762820223500,4.12380304,3572.9,3572.8,0.9935]
[1762820223828,2.7992386,3572.4,3571.1,1.01]
[1762820224028,3.26747921,3571.2,3571.1,0.01]
[1762820224234,0.4673,3571.2,3571.1,0.01]
[1762820224386,0.4673,3571.2,3571.1,1.01]
[1762820224589,3.26747921,3571.2,3571.1,0.01]
[1762820224831,3.50871112,3571.2,3571.1,0.01]
[1762820225188,4.13958607,3571.2,3571.1,0.01]
[1762820225612,4.11145416,3571.2,3571.1,0.01]
[1762820225902,5.39929807,3571.2,3571.1,0.01]
[1762820226226,5.37116616,3571.2,3571.1,0.01]
[1762820226439,5.39929807,3571.2,3571.1,0.01]
[1762820227170,5.39929807,3571.2,3571.1,1e-08]
[1762820228027,6.04416616,3571.2,3571.1,1e-08]
[1762820228244,5.37116616,3571.2,3571.1,1e-08]
[1762820228551,2.80017921,3571.2,3571.1,1e-08]
[1762820228739,0.2131,3571.7,3571.2,1.0]
[1762820228740,2.80001266,3571.5,3571.2,1.0]
[1762820228940,0.4724,3572.2,3571.2,1.0]
[1762820229120,2.79992113,3571.6,3571.5,1.0]
[1762820229749,2.79947369,3572.1,3571.5,1.0]
[1762820229951,2.79963044,3571.9,3571.5,1.0]
[1762820230130,2.79947643,3572.1,3571.2,0.673]
[1762820230331,2.79947643,3572.1,3571.9,1.0]
[1762820231050,2.79955207,3572.0,3571.9,1.0]
[1762820231840,0.27992386,3572.3,3571.9,1.0]
[1762820232167,2.79955207,3572.0,3571.9,1.0]
[1762820232755,0.4724,3572.6,3571.6,0.38046549]
[1762820232946,2.79931696,3572.3,3572.2,1.0]
[1762820233129,2.79948396,3572.1,3571.6,0.4669]
[1762820233335,2.79941149,3572.2,3571.7,0.38046549]
[1762820233856,0.86637842,3572.7,3572.1,0.6698]
[1762820234053,0.1828,3572.9,3572.1,1.3418]
[1762820234267,2.79915297,3572.6,3572.2,0.38046549]
[1762820234468,2.79916601,3572.5,3572.2,0.38046549]
[1762820234634,2.7991007,3572.6,3572.2,0.38046549]
[1762820234966,0.1828,3572.9,3572.2,0.38046549]
[1762820234967,2.79918749,3572.5,3572.2,0.38046549]
[1762820235168,2.79917608,3572.5,3572.1,0.8549]
[1762820235576,0.1828,3572.9,3572.1,0.8549]
[1762820235577,2.79913815,3572.6,3572.1,1.23536549]
[1762820235781,2.79919048,3572.5,3572.1,1.3218]
[1762820236468,2.79923943,3572.4,3572.1,1.3218]
[1762820237170,0.4724,3573.5,3572.3,0.4869]
[1762820237375,0.667,3573.4,3572.5,0.4869]
[1762820237677,2.79897814,3572.8,3572.5,0.4869]
[1762820237998,2.79901502,3572.7,3572.5,0.4869]
[1762820238152,1.01201438,3573.3,3572.5,0.4869]
[1762820238553,2.79906225,3572.7,3572.5,0.4869]
[1762820238872,2.79894777,3572.8,3572.5,0.4869]
[1762820239052,2.79901467,3572.7,3572.5,0.4869]
[1762820239571,1.01201438,3573.3,3572.5,0.4869]
[1762820239778,0.46761152,3573.2,3572.5,0.4869]
[1762820239946,2.79905841,3572.7,3572.5,0.4869]
[1762820240147,2.7990819,3572.6,3572.4,0.38046549]
[1762820240348,2.79930076,3572.4,3572.1,0.8549]
[1762820240574,0.27993008,3572.4,3572.1,0.672]
[1762820240759,2.79939533,3572.2,3572.1,0.672]
[1762820242888,2.79921407,3572.5,3572.1,0.672]
[1762820243794,0.46761152,3573.2,3572.4,0.4869]
[1762820244091,0.1828,3573.7,3573.1,0.6698]
[1762820244257,2.79822061,3573.7,3573.3,0.4869]
[1762820244601,2.79815595,3573.8,3573.3,0.86736549]
[1762820244761,2.79822367,3573.7,3573.3,0.86736549]
[1762820245170,2.79822367,3573.7,3573.3,1.33566549]
[1762820245363,2.79830904,3573.6,3573.3,0.86736549]
[1762820246174,2.79821142,3573.8,3573.3,0.86736549]
[1762820246497,2.79835535,3573.6,3573.3,0.86736549]
[1762820246656,2.95340866,3573.9,3573.3,0.86736549]
[1762820246868,2.79829066,3573.7,3573.3,0.86736549]
[1762820247381,2.79831132,3573.6,3573.3,0.86736549]
[1762820248006,2.95336779,3573.9,3573.3,0.86736549]
[1762820248169,3.31429457,3573.9,3573.3,0.86736549]
[1762820248368,2.79831605,3573.6,3573.3,0.86736549]
[1762820248874,0.51622678,3573.9,3573.3,0.38046549]
[1762820249074,0.2687,3573.4,3572.4,2.79922626]
[1762820249313,2.79869539,3573.1,3572.5,1.259712]
[1762820249524,2.79853815,3573.3,3572.6,0.405504]
[1762820249525,2.79877252,3573.0,3572.6,0.405504]
[1762820249891,2.79877252,3573.0,3572.5,0.405504]
[1762820250216,3.26065956,3573.6,3572.5,1.665216]
[1762820250514,2.79878312,3573.0,3572.4,0.405504]
[1762820250703,2.79878312,3573.0,3572.4,1.665216]
[1762820251477,2.79858846,3573.3,3572.4,4.46443751]
[1762820251684,2.79869796,3573.1,3572.4,4.93273751]
[1762820251883,0.32606596,3573.5,3572.4,4.93273751]
[1762820252218,2.79874334,3573.1,3572.4,4.93273751]
[1762820252392,2.79874976,3573.1,3572.4,2.133516]
[1762820252597,0.358667,3573.4,3572.4,4.93274553]
[1762820252917,2.79876213,3573.1,3572.4,4.93275001]
[1762820253317,2.79931918,3573.6,3573.0,0.4898]
[1762820253520,2.79838962,3573.5,3573.1,0.405504]
[1762820253720,2.79838962,3573.5,3573.1,0.873804]
[1762820254218,2.79838962,3573.5,3572.9,0.405504]
[1762820254388,2.79931286,3573.6,3573.4,0.4898]
[1762820254589,0.27993129,3573.5,3573.4,0.4898]
[1762820255120,2.79936325,3573.6,3573.4,0.4898]
[1762820256220,2.79936325,3573.6,3573.2,0.4683]
[1762820256221,2.79837694,3573.5,3573.2,0.4683]
[1762820256424,0.2832,3573.3,3572.3,0.1979]
[1762820256596,0.4613,3573.4,3572.3,0.1979]
[1762820256810,2.7989851,3572.8,3572.3,0.1979]
[1762820257013,2.7989851,3572.8,3572.4,0.405504]
[1762820257212,2.7989851,3572.8,3572.1,4.05917448]
[1762820257213,2.79913999,3572.6,3572.1,1.259712]
[1762820257413,2.8273073,3572.5,3571.8,0.6512]
[1762820257726,2.79931696,3572.3,3571.8,0.6512]
[1762820258235,2.79931696,3572.3,3571.9,0.405504]
[1762820258735,1.02389173,3572.8,3571.8,0.1829]
[1762820259033,0.4613,3572.7,3571.6,0.405504]
[1762820259338,0.4613,3572.7,3571.5,0.6662]
[1762820259508,2.79930733,3572.4,3571.6,4.46503046]
[1762820259702,2.79932315,3572.3,3571.8,0.405504]
[1762820259902,2.79946222,3572.2,3571.6,1.665216]
[1762820260925,0.4613,3572.7,3571.6,1.665216]
[1762820260926,0.4613,3572.7,3571.7,2.79978721]
[1762820261111,0.4613,3572.7,3571.7,3.26808721]
[1762820261312,2.79933959,3572.3,3571.7,1.728012]
[1762820261520,0.75953057,3573.9,3572.6,0.6877]
[1762820261823,0.011,3573.9,3573.5,3.69368094]
[1762820262006,0.011,3573.9,3573.5,4.54462367]
[1762820262837,0.011,3573.9,3573.5,5.80433567]
[1762820263798,0.011,3573.9,3573.5,3.00595873]
[1762820264000,0.011,3573.9,3573.5,2.623316]
[1762820264230,0.011,3573.9,3573.5,2.155016]
[1762820264833,0.011,3573.9,3573.5,0.405504]
[1762820265044,0.1928,3573.9,3572.8,0.4683]
[1762820265239,2.79837694,3573.5,3573.0,1.259712]
[1762820265413,2.79837694,3573.5,3572.8,0.405504]
[1762820265815,0.001,3573.6,3572.6,0.1979]
[1762820266143,0.001,3573.6,3572.8,2.79890701]
[1762820266144,2.79838432,3573.5,3572.8,2.79890701]
[1762820266641,2.79839436,3573.5,3572.8,2.79890701]
[1762820267042,2.7984706,3573.4,3572.9,0.38264273]
[1762820267347,0.001,3573.6,3572.9,1.64235473]
[1762820267526,2.79932086,3573.6,3572.9,1.64235473]
[1762820267728,0.001,3573.6,3573.5,0.895304]
[1762820267910,0.001,3573.6,3573.5,4.10849033]
[1762820268110,0.001,3573.6,3573.5,4.57679033]
[1762820268539,0.001,3573.6,3573.5,1.77841339]
[1762820268705,0.001,3573.6,3573.5,1.31011339]
[1762820270033,0.001,3573.6,3573.0,2.79875756]
[1762820270347,0.001,3573.6,3573.3,0.41480939]
[1762820270521,0.30020252,3573.6,3572.7,1.259712]
[1762820270726,2.79837694,3573.5,3572.9,1.259712]
[1762820271246,0.451,3573.0,3572.1,0.05]
[1762820271413,0.001,3573.6,3572.1,0.1979]
[1762820271414,0.1956,3572.9,3572.1,0.1979]
[1762820271616,2.79892521,3572.8,3572.1,2.9973695]
[1762820271832,2.79892521,3572.8,3572.2,0.405504]
[1762820272032,0.75066796,3574.6,3572.2,0.405504]
[1762820272033,2.79814775,3573.8,3572.7,0.4898]
[1762820272239,2.79936101,3573.6,3572.8,0.4898]
[1762820272436,2.79930286,3573.6,3572.8,0.4898]
[1762820272639,0.001,3573.6,3572.8,0.4898]
[1762820272839,2.79861418,3573.2,3572.6,0.405504]
[1762820273060,3.07849813,3573.2,3572.6,0.405504]
[1762820273371,2.79869217,3573.1,3572.6,0.405504]
[1762820273766,3.07852789,3573.2,3572.7,0.41480939]
[1762820273966,2.79866647,3573.2,3572.7,0.41480939]
[1762820274272,2.79870025,3573.1,3572.7,0.41480939]
[1762820274476,3.27592521,3572.8,3572.7,0.41480939]
[1762820274772,3.60357006,3572.8,3571.1,0.18490001]
[1762820274962,2.79941783,3572.2,3571.5,0.405504]
[1762820275157,1.26409252,3572.8,3571.4,0.4985]
[1762820275158,2.79932809,3572.3,3571.4,0.4985]
[1762820275381,0.98269252,3572.8,3571.3,2.80003273]
[1762820275382,0.52319252,3572.8,3571.7,0.405504]
[1762820275668,0.52319252,3572.8,3571.9,0.405504]
[1762820275669,0.1956,3572.8,3571.9,0.405504]
[1762820275843,2.99458687,3572.8,3572.1,0.405504]
[1762820276972,2.79907977,3572.7,3572.1,0.592804]
[1762820277274,0.4782,3572.7,3571.5,0.405504]
[1762820277509,0.2647,3572.2,3571.5,0.35171528]
[1762820277783,0.2647,3572.2,3571.4,0.4985]
[1762820277962,0.2647,3572.2,3571.5,1.665216]
[1762820278274,0.82326555,3572.6,3571.5,1.665216]
[1762820278275,0.82326555,3572.6,3571.7,2.79971912]
[1762820278434,0.38178885,3572.5,3571.7,0.405504]
[1762820278648,3.0880513,3573.3,3571.5,0.405504]
[1762820278649,1.259712,3573.2,3572.1,0.405504]
[1762820278972,2.79895609,3572.8,3572.2,0.38746528]
[1762820279276,2.79895609,3572.8,3572.2,0.57476528]
[1762820279768,2.79902577,3572.7,3572.2,0.38746528]
[1762820280003,2.79902577,3572.7,3572.1,0.405504]
[1762820280004,0.4522,3572.3,3571.7,0.405504]
[1762820280279,2.79924808,3572.4,3571.6,0.405504]
[1762820280574,2.79947024,3572.2,3571.5,0.405504]
[1762820280775,2.79947024,3572.2,3571.5,2.05268128]
[1762820280954,2.79948564,3572.1,3571.5,0.405504]
[1762820281278,2.79949869,3572.1,3571.5,1.64717728]
[1762820281477,2.79935569,3572.3,3571.5,4.05963869]
[1762820281679,0.4782,3572.6,3571.5,0.405504]
[1762820281879,2.79926325,3572.4,3571.6,2.7998129]
[1762820282079,2.79926325,3572.4,3571.5,0.904004]
[1762820282080,0.4782,3572.6,3571.5,3.70392725]
[1762820282285,2.79916025,3572.5,3571.5,3.70392725]
[1762820282480,2.79930027,3572.4,3571.6,2.79982811]
[1762820282780,0.4782,3572.6,3571.6,2.79982811]
[1762820282959,2.79931837,3572.3,3571.6,2.79982811]
[1762820283281,2.79931837,3572.3,3571.7,0.38746528]
[1762820283776,2.7994086,3572.2,3571.6,1.259712]
[1762820284585,2.79932544,3572.3,3571.6,2.7998473]
[1762820284886,0.32773732,3572.4,3571.6,2.7998473]
[1762820285060,2.79932889,3572.3,3571.6,2.7998473]
[1762820285242,2.79925649,3572.4,3571.6,2.7998473]
[1762820285757,0.001,3572.8,3572.3,0.6446]
[1762820286074,0.001,3572.8,3571.8,0.4985]
[1762820286275,0.001,3572.8,3571.4,2.80001485]
[1762820286276,2.79931728,3572.3,3571.4,2.80001485]
[1762820286449,2.79945782,3572.2,3571.5,0.405504]
[1762820286791,2.79945782,3572.2,3571.4,0.405504]
[1762820286999,2.7994899,3572.1,3571.5,1.259712]
[1762820287200,2.79957364,3572.0,3571.4,0.405504]
[1762820287398,2.79925127,3572.4,3571.4,0.405504]
[1762820287597,2.79941105,3572.2,3571.6,1.259712]
[1762820287798,3.12706017,3572.4,3571.6,2.7998656]
[1762820287988,3.12706017,3572.4,3571.7,2.79972044]
[1762820288186,0.001,3572.8,3571.7,0.405504]
[1762820288503,0.001,3572.8,3572.7,0.4573]
[1762820289901,3.25219657,3572.8,3571.8,0.4985]
[1762820290087,2.79900355,3572.7,3572.1,1.259712]
[1762820290414,0.001,3572.8,3572.0,1.259712]
[1762820290701,2.79905521,3572.7,3572.0,2.79947724]
[1762820291010,2.79900408,3572.7,3572.1,0.1873]
[1762820291331,0.34758504,3572.8,3572.1,0.1873]
[1762820291467,2.79993384,3572.8,3572.2,1.259712]
[1762820291667,0.001,3572.8,3572.2,3.20489933]
[1762820291878,0.001,3572.8,3572.4,2.79923845]
[1762820292300,0.001,3572.8,3572.4,3.29773845]
[1762820292801,0.001,3572.8,3572.4,0.4985]
[1762820293005,0.001,3572.8,3572.2,0.405504]
[1762820293369,0.2725,3572.3,3571.4,2.8000224]
[1762820293702,2.79918447,3572.5,3571.8,1.665216]
[1762820294072,2.79918447,3572.5,3571.8,2.7996773]
[1762820294268,2.79914633,3572.6,3571.7,2.79976678]
[1762820294477,2.79914633,3572.6,3571.9,2.79963044]
[1762820294712,2.79916215,3572.5,3571.9,2.79963044]
[1762820294889,2.79913147,3572.6,3571.9,2.79963044]
[1762820295273,0.29976578,3572.8,3571.9,2.79963044]
[1762820295586,0.32864157,3572.7,3572.0,2.79955029]
[1762820295797,2.7990929,3572.6,3572.0,2.79955029]
[1762820296512,2.7990929,3572.6,3571.9,2.7996165]
[1762820296678,2.79916749,3572.5,3572.0,0.38746528]
[1762820297013,2.79916749,3572.5,3571.9,2.7996165]
[1762820297376,2.79909011,3572.6,3571.9,2.7996165]
[1762820297908,0.61154576,3572.6,3571.8,3.29820226]
[1762820298121,2.79908898,3572.6,3572.0,0.38746528]
[1762820298497,0.32864157,3572.7,3572.0,0.38746528]
[1762820298686,0.001,3572.8,3572.0,0.38746528]
[1762820298893,0.2725,3572.1,3571.6,1.259712]
[1762820299115,0.2725,3572.1,3571.6,2.7998599]
[1762820299279,0.2725,3572.1,3571.3,0.405504]
[1762820299481,0.4761,3572.4,3571.8,2.79965871]
[1762820299710,2.79992977,3572.8,3571.8,2.79965871]
[1762820300007,2.79924673,3572.4,3571.7,2.79975965]
[1762820300212,2.79932114,3572.3,3571.7,2.79975965]
[1762820300509,0.2725,3571.8,3571.5,0.405504]
[1762820300711,0.4055,3571.8,3571.1,2.9850841]
[1762820300888,0.4055,3571.8,3571.1,0.00200001]
[1762820300889,2.7998672,3571.6,3571.1,0.00200001]
[1762820301215,0.62107265,3571.6,3571.1,0.18930001]
[1762820301421,0.133,3571.8,3571.1,0.18930001]
[1762820301727,0.4782,3572.3,3571.3,0.405504]
[1762820301968,0.666,3572.3,3571.3,3.2055544]
[1762820302093,0.69413191,3572.3,3571.1,0.18930001]
[1762820302431,3.01697921,3571.2,3571.1,0.00200001]
[1762820302805,3.49257921,3571.2,3571.1,0.00200001]
[1762820303316,3.0880513,3571.7,3571.1,0.00200001]
[1762820303317,0.4756,3571.7,3571.1,0.00200001]
[1762820303521,0.37821832,3572.2,3571.1,0.00200001]
[1762820303522,2.79963757,3571.9,3571.1,0.00200001]
[1762820303731,0.4782,3572.0,3571.1,0.18930001]
[1762820304111,2.79978277,3571.8,3571.1,2.9895426]
[1762820304435,2.9871899,3572.3,3571.4,2.79997067]
[1762820304620,2.79953238,3572.1,3571.4,2.79997067]
[1762820304932,0.34653899,3572.2,3571.2,0.405504]
[1762820305138,2.79948215,3572.1,3571.5,0.38746528]
[1762820305298,3.44832373,3572.3,3571.5,0.38746528]
[1762820305499,2.79956742,3572.0,3571.3,2.80007797]
[1762820305853,2.79956742,3572.0,3571.5,0.38746528]
[1762820306016,3.42435653,3572.0,3571.5,0.38746528]
[1762820306419,0.62478911,3572.0,3571.5,0.38746528]
[1762820306614,3.42434756,3572.0,3571.3,2.80003038]
[1762820307118,0.62478911,3572.0,3571.4,2.80001924]
[1762820307646,0.62478911,3572.0,3571.2,0.88056528]
[1762820307807,0.62478911,3572.0,3571.1,0.18930001]
[1762820307808,2.80017921,3571.2,3571.1,0.00200001]
[1762820308007,3.27811112,3571.2,3571.1,0.00200001]
[1762820308237,6.61116242,3571.2,3571.1,0.00200001]
[1762820308443,6.58303051,3571.2,3571.1,0.00200001]
[1762820308827,7.84274251,3571.2,3571.1,0.00200001]
[1762820309026,8.90702526,3571.2,3571.1,0.00200001]
[1762820309227,9.50754948,3571.2,3571.1,0.00200001]
[1762820309433,8.90702526,3571.2,3571.1,0.00200001]